Workbook

Sheet Menu
A1: Best Beginnings STARS to Quality Budget and Budget Narrative Revised AUGUST 2020 | I1: Budget Instructions & Tips This document will only be accepted electronically as an Excel file type. No other forms of this document will be accepted.
A2: STARS Incentive Budget | I2: General Tips: ▪ To complete this document, click "enable content" if it appears at the top of the document ▪ Before completing this document, save it to your computer as an "Excel Macro-Enabled Workbook" or your filled-in cells will not be saved ▪ To copy/paste information into the Budget Narrative tab, either a “double click” while on the cell or “F2” while on the cell, will allow you to paste wording that was copied from another source, like a Word document. ▪ To view the Budget and Budget Narrative tab at the same time, select ”New Window,” then “View Side by Side” on the View tab in Excel. ▪To move to a different sheet, either click the corresponding button on this Menu page, or click on the name of the tab below. Cells in orange are filled out by the provider, all orange cells must be completed Cells in red are protected from editing and are auto filled STARS Incentive Budget Tab: ▪ Fill out the orange cells at the top of the page. Information entered for facility type, STAR level, years at STAR level, STAR level award month and year, will allow the budget to autofill the budget dates, incentive amount, and personnel minimum amount. ▪ There are 2 budget line items: Personnel and Operations. ▪ As each quarter and line item are entered, the budget total will automatically adjust. ▪ If the quarterly amounts entered do not equal the budget total, the total budget will either show "Over Budget" or "Under Budget" ▪ Once the budget is complete, the provider must electronically sign by typing their name in the signature line, and enter the date. Budget Narrative: ▪ The PV # and Program Name will be auto filled based on what was entered on the budget tab. ▪ Enter the name of the person completing this tab. ▪ The Budget information in the Budget Item vs Budget section will be auto filled based on what was entered in the STARS Incentive Budget tab. The Budget Item amounts will fill in as you enter budget categories and costs of each specific task or item for improvement ▪ For the Budget Category column, select the source by using the drop down button. ▪ To add rows, click "Add INSERT ROW" button on the right of the sheet. Cost of Care Calculator ▪ See tab for instructions
A3: STARS incentives are to be used for continuous quality improvement, staff support and salaries, professional development, equipment, etc. Purchases and investments are meant to assist a program in moving to the next level, maintaining the STAR level achieved and increasing quality. The STAR Kits include a resource containing Budget Ideas for Personnel Costs. STARS incentives may not be used for construction. Incomplete budgets will not be approved. All incentives for the Best Beginnings STARS to Quality Program are subject to eligibility requirements as outlined in policy and are dependent on funding.
A11: Budget Narrative Section
A12: 1. STARS Budget Item - must specify what the funds are being used for 2. Budget Amount - must be exact, and totals must match totals on the Budget 3. Budget Category - must select either Personnel or Operations 4. Quarter Budgeted In - must select either 1, 2, 3, or 4. Funds do not have to be spent within that quarter; however, this will assist with overall program budgeting.
A21: Cost of Care Calculator
A22: This tool is designed to help you determine what the cost of care per child in your program may be. Reporting cost of care for child care programs is now a federal requirement. All information on the Cost of Care Calculator is confidential, and only the cost of care per child will be used for reporting purposes. The Cost of Care Calculator must be completed in order for the Budget and QIP to be approved.

Sheet STARS Incentive Budget
A1: Best Beginnings STARS to Quality Incentive Budget
B4: PV# | F4: CENTERS ONLY
B5: Facility Type | F5: Facility Size
F6: License Capacity or Average Daily Attendance for the previous 3 months, whichever is less
B8: STAR Level | D8: STAR Level Award Month | F8: July
B9: Years at Level | D9: STAR Level Award Year
B11: Director Name | F11: PS#
B12: Program Name
B13: Mailing Address
B14: City, State, Zip
B15: Fiscal Agent Name and Phone (for centers)
B18: Budget Dates | C18: =F8 -> July | D18: =$F$9 -> 0 | E18: TO | F18: =_xlfn.IFS(F8="January","December",F8="July","June") -> June | G18: =_xlfn.IFS(F8="January",F9,F8="July",F9+1) -> 1
B20: STAR Incentive | D20: Quarterly | E20: ='Budget Codes & Formulas'!$I$7 ->  | F20: Yearly | G20: ='Budget Codes & Formulas'!$I$11 -> 
B21: Personnel Budget | D21: Quarterly | E21: ='Budget Codes & Formulas'!$I$12 ->  | F21: Yearly | G21: ='Budget Codes & Formulas'!$I$16 -> 
B23: BUDGET CATEGORY (Line Item Description) | C23: Quarter 1 | D23: Quarter 2 | E23: Quarter 3 | F23: Quarter 4 | G23: Budget Total
C24: =_xlfn.IFS($C$18="January","Jan-Feb-Mar",$C$18="July","Jul-Aug-Sept") -> Jul-Aug-Sept | D24: =_xlfn.IFS($C$18="January","Apr-May-June",$C$18="July","Oct-Nov-Dec") -> Oct-Nov-Dec | E24: =_xlfn.IFS($C$18="January","July-Aug-Sept",$C$18="July","Jan-Feb-Mar") -> Jan-Feb-Mar | F24: =_xlfn.IFS($C$18="January","Oct-Nov-Dec",$C$18="July","Apr-May-June") -> Apr-May-June
B25: 1. Personnel Expenses | G25: =SUM(C25:F25) -> 0
B26: 2. Operations | G26: =SUM(C26:F26) -> 0
B27: Sub Total | C27: =SUM(C25:C26) -> 0 | D27: =SUM(D25:D26) -> 0 | E27: =SUM(E25:E26) -> 0 | F27: =SUM(F25:F26) -> 0 | G27: =SUM(G25:G26) -> 0
B28: Over/(Under) Budget | C28: =_xlfn.IFS($C$27-$E$20="E20",0,$C$27-$E$20>"0",$C$27-$E$20,$C$27-$E$20<"0",$C$27-$E$20) ->  | D28: =SUM($D$27-$E$20) ->  | E28: =SUM($E$27-$E$20) ->  | F28: =SUM($F$27-$E$20) ->  | G28: =SUM(C28:F28) -> 
E29: TOTAL BUDGET | G29: =_xlfn.IFS(SUM(C28:F28)>0,"Over Budget",SUM(C28:F28)<0,"Under Budget",SUM(C28:F28)=0,SUM(G25:G26)) -> 
B33: Facility Signature
B36: ECSB Approval
B40: Over/Under Budget Correction Calculator (use as needed, does not have to be completed)
B41: Budget Category to Correct
B42: Current Budget Item Amount | C42: =_xlfn.IFS(C41="Operations",C26,C41="",0,C41="Personnel Expenses",C25) -> 0 | D42: =_xlfn.IFS(D41="Operations",D26,D41="",0,D41="Personnel Expenses",D25) -> 0 | E42: =_xlfn.IFS(E41="Operations",E26,E41="",0,E41="Personnel Expenses",E25) -> 0 | F42: =_xlfn.IFS(F41="Operations",F26,F41="",0,F41="Personnel Expenses",F25) -> 0
B43: Over / Under Budget Amount | C43: =C28 ->  | D43: =D28 ->  | E43: =E28 ->  | F43: =F28 -> 
B44: New Corrected Amount | C44: =SUM(C42-C43) ->  | D44: =SUM(D42-D43) ->  | E44: =SUM(E42-E43) ->  | F44: =SUM(F42-F43) -> 

Sheet Budget Narrative
B1: Best Beginnings STARS to Quality Budget Narrative
B4: PV #: | C4: ='STARS Incentive Budget'!$C$4 -> 0
B5: Program Name: | C5: ='STARS Incentive Budget'!$C$12 -> 0
B6: Name of Person Completing Plan:
B9: Budget vs Budget Items Narrative
C11: Budget Amounts | D11: Narrative Amounts | E11: Budget / Narrative
C12: from budget tab | D12: from table below | E12: difference
B13: Personnel Expenses | C13: ='STARS Incentive Budget'!$G$25 -> 0 | D13: =SUMIFS(QIP_Improvement[[#All],[Budget Amount (must be exact)]],QIP_Improvement[[#All],[ Budget Category (Personnel or Operations)]],"Personnel Expenses") -> 0 | E13: =SUM(C13-D13) -> 0
B14: Operations | C14: ='STARS Incentive Budget'!$G$26 -> 0 | D14: =SUMIFS(QIP_Improvement[[#All],[Budget Amount (must be exact)]],QIP_Improvement[[#All],[ Budget Category (Personnel or Operations)]],"Operations") -> 0 | E14: =SUM(C14-D14) -> 0
B15: Total | C15: ='STARS Incentive Budget'!$G$27 -> 0 | D15: =SUM(D13:D14) -> 0 | E15: =SUM(C15-D15) -> 0
B18: STARS Budget Item (what specifically is being budgeted for) | C18: Budget Amount (must be exact) | D18: Budget Category (Personnel or Operations) | E18: Quarter Budgeted In

Sheet Cost of Care Calculator
B1: Best Beginnings STARS to Quality Cost of Care Calculator
B4: PV# | C4: ='STARS Incentive Budget'!$C$4 -> 0 | F4: Facility Type | G4: ='STARS Incentive Budget'!$C$5 -> 0
B5: PS# | C5: ='STARS Incentive Budget'!$G$11 -> 0 | F5: Facility Size | G5: ='STARS Incentive Budget'!$G$5 -> 0
F6: STAR Level | G6: STAR 2
B9: Director Name | C9: ='STARS Incentive Budget'!$C$11 -> 0
B10: Program Name | C10: ='STARS Incentive Budget'!$C$12 -> 0
B11: Mailing Address | C11: ='STARS Incentive Budget'!$C$13 -> 0
B12: City, State, Zip | C12: ='STARS Incentive Budget'!C14 -> 0 | F12: ='STARS Incentive Budget'!F14 -> 0 | G12: ='STARS Incentive Budget'!G14 -> 0
B13: Fiscal Agent: Name and Phone | C13: ='STARS Incentive Budget'!C15 -> 0 | F13: ='STARS Incentive Budget'!F15 -> 0
C15: Monthly | E15: Yearly (Estimate)
B16: Total Revenue | C16: =SUM(C33) ->  | E16: =SUM(C16*12) -> 
B17: Total Expenses | C17: =SUM(C70) -> 0 | E17: =SUM(C17*12) -> 0
B18: Net Profit / Loss | C18: =SUM(C16-C17) ->  | E18: =SUM(C18*12) -> 
B20: Cost Per Child | C20: =SUM(C17/J38) ->  | E20: =SUM(E17/J38) -> 
B22: INSTRUCTIONS:
B23: Cells that are light orange are fillable.
B24: Replace the current numbers with those from your own program to determine the cost per child in your program. All programs charge differently, so please provide the best estimate of your daily rate. The blank orange rows in revenue and expenses can be used to add program-specific items. The white lines in Total Revenue and in the Enrollment section will automatically fill in once the orange cells for Rate per day, number of children, and average days of operation per month are completed. Expenses will populate from the numbers entered in Food service, vehicle, and personnel. Additional revenue and expenses can be added in the orange lines. The totals in green above will automatically calculate based on what is entered below in the orange cells. For additional assistance, a sample Cost of Care Calculator is located on the STARS website in the Incentives tab.
B31: Revenue - Monthly | E31: Enrollment - Monthly Revenue
B33: TOTAL REVENUE | C33: =SUM(C34:C53) ->  | E33: Age | F33: Infant | G33: Toddler | H33: Preschool | I33: School Age
B34: Private Pay | C34: =SUM(J42) -> 0 | E34: Rate per day
B35: Subsidy Payment | C35: =SUM(J43) -> 0 | J35: TOTAL
B36: Parent Unpaid Co-payment | C36: =SUM(J47) -> 0 | E36: # of Private Pay Children | J36: =SUM(F36:I36) -> 0
B37: STAR Attendance Bonus | C37: =SUM(F52) -> 0 | E37: # of subsidy Children | J37: =SUM(F37:I37) -> 0
B38: STAR Incentive | C38: =SUM(J52) ->  | E38: Total Children | F38: =SUM(F36:F37) -> 0 | G38: =SUM(G36:G37) -> 0 | H38: =SUM(H36:H37) -> 0 | I38: =SUM(I36:I37) -> 0 | J38: =SUM(J36:J37) -> 0
B39: CACFP | C39: 0
C40: 0 | E40: Average days per month
C41: 0 | J41: TOTAL
C42: 0 | E42: Private Pay | F42: =SUM(F34*F36*$F$40) -> 0 | G42: =SUM(G34*G36*$F$40) -> 0 | H42: =SUM(H34*H36*$F$40) -> 0 | I42: =SUM(I34*I36*$F$40) -> 0 | J42: =SUM(F42:I42) -> 0
C43: 0 | E43: Subsidy Payment | F43: =SUM(F34*F37*$F$40) -> 0 | G43: =SUM(G34*G37*$F$40) -> 0 | H43: =SUM(H34*H37*$F$40) -> 0 | I43: =SUM(I34*I37*$F$40) -> 0 | J43: =SUM(F43:I43) -> 0
C44: 0 | E44: Total Payment | F44: =SUM(F42:F43) -> 0 | G44: =SUM(G42:G43) -> 0 | H44: =SUM(H42:H43) -> 0 | I44: =SUM(I42:I43) -> 0 | J44: =SUM(J42:J43) -> 0
C45: 0
C46: 0 | F46: Enter as a negative number - this is a loss | J46: TOTAL
C47: 0 | E47: Unpaid Co-payment | J47: =SUM(F47:I47) -> 0
C48: 0
C49: 0 | E49: STAR Facility - Monthly Revenue
C50: 0
C51: 0 | E51: % Bonus | F51: =_xlfn.IFS(G6="Not a STAR Participant",0%,G6="STAR Participant",0%,G6="STAR 1",0%,G6="STAR 2",5%,G6="STAR 3",10%,G6="STAR 4",15%,G6="STAR 5",20%) -> 0.05 | I51: Quarterly Incentive | J51: ='STARS Incentive Budget'!$E$20 -> 
C52: 0 | E52: STARS Attendance Bonus | F52: =SUM(J43*F51) -> 0 | I52: Monthly Incentive | J52: =SUM(J51/3) -> 
C53: 0
C54: 0
C55: 0
C56: 0
C57: 0
C58: 0
C59: 0
C60: 0
C61: 0
C62: 0
C63: 0
C64: 0
C65: 0
C66: 0
C67: 0
B68: Expenses - Monthly | E68: Food Service - Monthly Expenses | H68: Vehicle - Monthly Expenses
B70: TOTAL EXPENSE | C70: =SUM(C71:C104) -> 0 | E70: Food Services | F70: =SUM(F71:F76) -> 0 | H70: Vehicle Expenses | J70: =SUM(J71:J76) -> 0
B71: Food Services (enter detail at right) | C71: =SUM(F70) -> 0 | E71: Food | F71: 0 | H71: Interest & depreciation | J71: 0
B72: Vehicle (enter detail at right) | C72: =SUM(J70) -> 0 | E72: Supplies | F72: 0 | H72: Fuel | J72: 0
B73: Personnel (enter detail at right) | C73: =SUM(F80) -> 0 | F73: 0 | H73: Car Insurance | J73: 0
B74: Professional Services (Bookkeeping, legal, etc.) | C74: 0 | F74: 0 | H74: Maintenance | J74: 0
B75: Professional Membership / Dues | C75: 0 | F75: 0 | J75: 0
B76: Training Registrations | C76: 0 | F76: 0 | J76: 0
B77: Supplies | C77: 0
B78: Equipment | C78: 0 | E78: Personnel - Monthly Expenses
B79: Rent Lease (or Mortgage interest & depreciation) | C79: 0
B80: Utilities | C80: 0 | E80: Personnel Expenses | F80: =SUM(F81:F85,J81:J85,J89) -> 0
B81: Maintenance / Cleaning | C81: 0 | E81: State Payroll Tax | J81: 0
B82: Communications | C82: 0 | E82: Federal Payroll Tax | F82: 0 | J82: 0
C83: 0 | E83: Workers Comp | F83: 0 | J83: 0
C84: 0 | E84: Health Insurance | F84: 0 | J84: 0
C85: 0 | E85: Retirement | F85: 0 | J85: 0
C86: 0
C87: 0 | F87: Hourly Wage | G87: Number of Staff | H87: Hours Per Month | I87: Wages Per Month | J87: Total Wages Per Month
C88: 0 | E88: Staff Type
C89: 0 | E89: Director | F89: 0 | I89: =SUM(F89*G89*H89) -> 0 | J89: =SUM(I89:I104) -> 0
E90: Teacher Level 1 | F90: 0 | I90: =SUM(F90*G90*H90) -> 0
C91: 0 | E91: Teacher Level 2 | F91: 0 | I91: =SUM(F91*G91*H91) -> 0
C92: 0 | E92: Teacher Level 3 | F92: 0 | I92: =SUM(F92*G92*H92) -> 0
C93: 0 | E93: Teacher Level 4 | F93: 0 | I93: =SUM(F93*G93*H93) -> 0
C94: 0 | F94: 0 | I94: 0
F95: 0 | I95: 0
C96: 0 | F96: 0 | I96: 0
C97: 0 | F97: 0 | I97: 0
C98: 0 | F98: 0 | I98: 0
C99: 0 | F99: 0 | I99: 0
C100: 0 | F100: 0 | I100: 0
C101: 0 | F101: 0 | I101: 0
C102: 0 | F102: 0 | I102: 0
C103: 0 | E103: Substitute | F103: 0 | I103: 0
C104: 0 | E104: Cook | F104: 0 | I104: 0

Sheet Budget Codes & Formulas (hidden)
L1: Row # | M1: 1 | N1: 2 | O1: 3 | P1: 4 | Q1: 5 | R1: 6 | S1: 7 | T1: 8 | U1: 9 | V1: 10 | W1: 11 | X1: 12 | Y1: 13 | Z1: 14 | AA1: 15
A2: STAR Budget Control Codes | H2: STAR Budget Formula Results Table | M2: ID | N2: Facility Type | O2: Start Level | P2: Number of Years at Level | Q2: Qtr 1 Budget | R2: Qtr 2 Budget | S2: Qtr 3 Budger | T2: Qtr 4 Budget | U2: Yearly Budget | V2: Qtr 1 Quarterly Personnel/Staff Costs | W2: Qtr 2 Quarterly Personnel/Staff Costs | X2: Qtr 3 Quarterly Personnel/Staff Costs | Y2: Qtr 4 Quarterly Personnel/Staff Costs | Z2: Yearly Personnel/Staff Costs | AA2: Value
A3: Month | B3: Year | C3: Facility Type | D3: STAR Level | E3: Renewals | F3: Facility Size | H3: Facility Type | I3: =I20 ->  | J3: Row | M3: 1 | N3: Family Child Care | O3: STAR 2 | P3: 0 | Q3: =$J$42 -> 625 | R3: =$J$42 -> 625 | S3: =$J$42 -> 625 | T3: =$J$42 -> 625 | U3: =SUM(Q3:T3) -> 2500 | V3: =SUM($J$42*$I$36) -> 125 | W3: =SUM($J$42*$I$36) -> 125 | X3: =SUM($J$42*$I$36) -> 125 | Y3: =SUM($J$42*$I$36) -> 125 | Z3: =SUM(V3:Y3) -> 500 | AA3: =IF(AND($N$3:$N$162=$I$3)*($O$3:$O$162=$I$4)*($P$3:$P$162=$I$5),$M$3:$M$162,0) -> 
A4: January | B4: 2018 | C4: Family Child Care | D4: STAR 2 | E4: 0 | H4: STAR Level | I4: ='STARS Incentive Budget'!$C$8 -> 0 | M4: 2 | N4: Family Child Care | O4: STAR 2 | P4: 1 | Q4: =$Q$3 -> 625 | R4: =$R$3 -> 625 | S4: =$S$3 -> 625 | T4: =$T$3 -> 625 | U4: =SUM(Q4:T4) -> 2500 | V4: =SUM(Q4*$I$36) -> 125 | W4: =SUM(R4*$I$36) -> 125 | X4: =SUM(S4*$I$36) -> 125 | Y4: 125 | Z4: =SUM(V4:Y4) -> 500 | AA4: =IF(AND($N$3:$N$162=$I$3)*($O$3:$O$162=$I$4)*($P$3:$P$162=$I$5),$M$3:$M$162,0) -> 
A5: July | B5: 2019 | C5: Group Child Care | D5: STAR 3 | E5: 1 | F5: 16 - 29 | H5: Years at Level | I5: =IF(J5<7,'STARS Incentive Budget'!C9,"7+") -> 0 | J5: ='STARS Incentive Budget'!$C$9 -> 0 | M5: 3 | N5: Family Child Care | O5: STAR 2 | P5: 2 | Q5: =$Q$3 -> 625 | R5: =$R$3 -> 625 | S5: =$S$3 -> 625 | T5: =$T$3 -> 625 | U5: =SUM(Q5:T5) -> 2500 | V5: 125 | W5: 125 | X5: 125 | Y5: 125 | Z5: 500
B6: 2020 | C6: Child Care Center | D6: STAR 4 | E6: 2 | F6: 30 - 59 | H6: Value | I6: =SUM(AA3:AA162) ->  | M6: 4 | N6: Family Child Care | O6: STAR 2 | P6: 3 | Q6: =$Q$3 -> 625 | R6: =$R$3 -> 625 | S6: =$S$3 -> 625 | T6: =$T$3 -> 625 | U6: 2500 | V6: 125 | W6: 125 | X6: 125 | Y6: 125 | Z6: 500
A7: Budget Line Item | B7: 2021 | D7: STAR 5 | E7: 3 | F7: 60+ | H7: Qtr 1 Budget | I7: =VLOOKUP($I$6,$M$2:$AA$162,J7) ->  | J7: 5 | L7: =ROUND(($Q$6-($Q$6*$I$71)),0) -> 0 | M7: 5 | N7: Family Child Care | O7: STAR 2 | P7: 4 | Q7: =$Q$3 -> 625 | R7: =$R$3 -> 625 | S7: =$S$3 -> 625 | T7: =$T$3 -> 625 | U7: =SUM(Q7:T7) -> 2500 | V7: =SUM(Q7*$I$36) -> 125 | W7: =SUM(R7*$I$36) -> 125 | X7: =SUM(S7*$I$36) -> 125 | Y7: =SUM(T7*$I$36) -> 125 | Z7: =SUM(V7:Y7) -> 500
A8: Operations | B8: 2022 | E8: 4 | H8: Qtr 2 Budget | I8: =VLOOKUP($I$6,$M$2:$AA$162,J8) ->  | J8: 6 | M8: 6 | N8: Family Child Care | O8: STAR 2 | P8: 5 | Q8: =ROUND(($Q$7-($Q$7*$I$72)),0) -> 469 | R8: =ROUND(($R$7-($R$7*$I$72)),0) -> 469 | S8: =ROUND(($S$7-($S$7*$I$72)),0) -> 469 | T8: =ROUND(($T$6-($T$6*$I$72)),0) -> 469 | U8: 1876 | V8: =SUM(Q8*$I$36) -> 93.8 | W8: =SUM(R8*$I$36) -> 93.8 | X8: 93.8 | Y8: 93.8 | Z8: 375.2
A9: Personnel Expenses | B9: 2023 | E9: 5 | H9: Qtr 3 Budget | J9: 7 | M9: 7 | N9: Family Child Care | O9: STAR 2 | P9: 6 | Q9: =ROUND(($Q$6-($Q$6*$I$72)),0) -> 469 | R9: =ROUND(($R$6-($R$6*$I$72)),0) -> 469 | S9: =ROUND(($S$6-($S$6*$I$72)),0) -> 469 | T9: =ROUND(($T$6-($T$6*$I$72)),0) -> 469 | U9: 1876 | V9: =SUM(Q9*$I$36) -> 93.8 | W9: 93.8 | X9: 93.8 | Y9: 93.8 | Z9: =SUM(V9:Y9) -> 375.2
B10: 2024 | E10: 6 | H10: Qtr 4 Budget | J10: 8 | M10: 8 | N10: Family Child Care | O10: STAR 2 | P10: 7+ | Q10: =ROUND(($Q$6-($Q$6*$I$72)),0) -> 469 | R10: =ROUND(($R$6-($R$6*$I$72)),0) -> 469 | S10: =ROUND(($S$6-($S$6*$I$72)),0) -> 469 | T10: =ROUND(($T$6-($T$6*$I$72)),0) -> 469 | U10: 1876 | V10: =SUM(Q10*$I$36) -> 93.8 | W10: 93.8 | X10: 93.8 | Y10: 93.8 | Z10: 375.2
A11: Quarter Budgeted In | B11: 2025 | E11: 7 | H11: Yearly Budget | J11: 9 | M11: 9 | N11: Family Child Care | O11: STAR 3 | P11: 0 | Q11: =$J$43 -> 938 | R11: =$J$43 -> 938 | S11: =$J$43 -> 938 | T11: =$J$43 -> 938 | U11: =SUM(Q11:T11) -> 3752 | V11: =SUM(Q11*$I$37) -> 281.4 | W11: 281.4 | X11: 281.4 | Y11: 281.4 | Z11: =SUM(V11:Y11) -> 1125.6
A12: Quarter 1 | B12: 2026 | E12: 8 | H12: Qtr 1 Personnel/Staff Costs | J12: 10 | M12: 10 | N12: Family Child Care | O12: STAR 3 | P12: 1 | Q12: =$Q$11 -> 938 | R12: =$R$11 -> 938 | S12: =$S$11 -> 938 | T12: =$T$11 -> 938 | U12: 3752 | V12: 281.4 | W12: 281.4 | X12: 281.4 | Y12: 281.4 | Z12: 1125.6
A13: Quarter 2 | B13: 2027 | E13: 9 | H13: Qtr 2 Personnel/Staff Costs | J13: 11 | M13: 11 | N13: Family Child Care | O13: STAR 3 | P13: 2 | Q13: =$Q$11 -> 938 | R13: =$R$11 -> 938 | S13: =$S$11 -> 938 | T13: =$T$11 -> 938 | U13: 3752 | V13: 281.4 | W13: 281.4 | X13: 281.4 | Y13: 281.4 | Z13: 1125.6
A14: Quarter 3 | B14: 2028 | E14: 10 | H14: Qtr 3 Personnel/Staff Costs | J14: 12 | M14: 12 | N14: Family Child Care | O14: STAR 3 | P14: 3 | Q14: =$Q$11 -> 938 | R14: =$R$11 -> 938 | S14: =$S$11 -> 938 | T14: =$T$11 -> 938 | U14: 3752 | V14: 281.4 | W14: 281.4 | X14: 281.4 | Y14: 281.4 | Z14: 1125.6
A15: Quarter 4 | E15: 11 | H15: Qtr 4 Personnel/Staff Costs | J15: 13 | M15: 13 | N15: Family Child Care | O15: STAR 3 | P15: 4 | Q15: =$Q$11 -> 938 | R15: 938 | S15: 938 | T15: 938 | U15: 3752 | V15: 281.4 | W15: 281.4 | X15: 281.4 | Y15: 281.4 | Z15: 1125.6
E16: 12 | H16: Personnel/Staff Costs | J16: 14 | M16: 14 | N16: Family Child Care | O16: STAR 3 | P16: 5 | Q16: 938 | R16: 938 | S16: 938 | T16: 938 | U16: 3752 | V16: 281.4 | W16: 281.4 | X16: 281.4 | Y16: 281.4 | Z16: 1125.6
M17: 15 | N17: Family Child Care | O17: STAR 3 | P17: 6 | Q17: 938 | R17: 938 | S17: 938 | T17: 938 | U17: 3752 | V17: 281.4 | W17: 281.4 | X17: 281.4 | Y17: 281.4 | Z17: 1125.6
A18: QIP Areas of Strength Control Codes | H18: STAR Budget - Facility Lookup Table | M18: 16 | N18: Family Child Care | O18: STAR 3 | P18: 7+ | Q18: 938 | R18: 938 | S18: 938 | T18: 938 | U18: 3752 | V18: 281.4 | W18: 281.4 | X18: 281.4 | Y18: 281.4 | Z18: 1125.6
A19: Source of Information | H19: Lookup Value | I19: Result Value | M19: 17 | N19: Family Child Care | O19: STAR 4 | P19: 0 | Q19: =$J$44 -> 1250 | R19: =$J$44 -> 1250 | S19: =$J$44 -> 1250 | T19: =$J$44 -> 1250 | U19: 5000 | V19: =SUM(Q19*$I$38) -> 500 | W19: 500 | X19: 500 | Y19: 500 | Z19: 2000
A20: ERS | H20: =CONCATENATE('STARS Incentive Budget'!C5," ",'STARS Incentive Budget'!G5) ->  | I20: =LOOKUP(H20,H22:H33,I22:I33) ->  | M20: 18 | N20: Family Child Care | O20: STAR 4 | P20: 1 | Q20: =$Q$19 -> 1250 | R20: =$R$19 -> 1250 | S20: =$S$19 -> 1250 | T20: =$T$19 -> 1250 | U20: 5000 | V20: 500 | W20: 500 | X20: 500 | Y20: 500 | Z20: 2000
A21: PAS | M21: 19 | N21: Family Child Care | O21: STAR 4 | P21: 2 | Q21: =$Q$19 -> 1250 | R21: =$R$19 -> 1250 | S21: =$S$19 -> 1250 | T21: =$T$19 -> 1250 | U21: 5000 | V21: 500 | W21: 500 | X21: 500 | Y21: 500 | Z21: 2000
A22: BAS | H22: Chid Care Center | I22: =IF(AND('STARS Incentive Budget'!$C$5="Child Care Center",'STARS Incentive Budget'!$G$5="0"),$I$32,0) -> 0 | M22: 20 | N22: Family Child Care | O22: STAR 4 | P22: 3 | Q22: 1250 | R22: 1250 | S22: 1250 | T22: 1250 | U22: 5000 | V22: 500 | W22: 500 | X22: 500 | Y22: 500 | Z22: 2000
A23: PDP | H23: Child Care Center 16 - 29 | I23: =IF(AND('STARS Incentive Budget'!$C$5="Child Care Center",'STARS Incentive Budget'!$G$5="16 - 29"),"Child Care Center - Small",0) -> 0 | M23: 21 | N23: Family Child Care | O23: STAR 4 | P23: 4 | Q23: 1250 | R23: 1250 | S23: 1250 | T23: 1250 | U23: 5000 | V23: 500 | W23: 500 | X23: 500 | Y23: 500 | Z23: 2000
A24: Knowledge Base | H24: Child Care Center 30 - 59 | I24: =IF(AND('STARS Incentive Budget'!$C$5="Child Care Center",'STARS Incentive Budget'!$G$5="30 - 59"),"Child Care Center - Medium",0) -> 0 | M24: 22 | N24: Family Child Care | O24: STAR 4 | P24: 5 | Q24: 1250 | R24: 1250 | S24: 1250 | T24: 1250 | U24: 5000 | V24: 500 | W24: 500 | X24: 500 | Y24: 500 | Z24: 2000
A25: Self-Assessment | H25: Child Care Center 60+ | I25: =IF(AND('STARS Incentive Budget'!$C$5="Child Care Center",'STARS Incentive Budget'!$G$5="60+"),"Child Care Center - Large",0) -> 0 | M25: 23 | N25: Family Child Care | O25: STAR 4 | P25: 6 | Q25: 1250 | R25: 1250 | S25: 1250 | T25: 1250 | U25: 5000 | V25: 500 | W25: 500 | X25: 500 | Y25: 500 | Z25: 2000
A26: Coach/Consultant Feedback | H26: Family Child Care | I26: =IF(AND('STARS Incentive Budget'!$C$5="Family Child Care",'STARS Incentive Budget'!$G$5=""),"Family Child Care",0) -> 0 | M26: 24 | N26: Family Child Care | O26: STAR 4 | P26: 7+ | Q26: 1250 | R26: 1250 | S26: 1250 | T26: 1250 | U26: 5000 | V26: 500 | W26: 500 | X26: 500 | Y26: 500 | Z26: 2000
A27: STARS criteria/checklist items | H27: Family Child Care 16 - 29 | I27: =IF(AND('STARS Incentive Budget'!$C$5="Family Child Care",'STARS Incentive Budget'!$G$5="16 - 29"),"Family Child Care",0) -> 0 | M27: 25 | N27: Family Child Care | O27: STAR 5 | P27: 0 | Q27: =$J$45 -> 1563 | R27: =$J$45 -> 1563 | S27: =$J$45 -> 1563 | T27: =$J$45 -> 1563 | U27: 6252 | V27: =SUM(Q27*$I$39) -> 781.5 | W27: 781.5 | X27: 781.5 | Y27: 781.5 | Z27: 3126
A28: Other | H28: Family Child Care 30 - 59 | I28: =IF(AND('STARS Incentive Budget'!$C$5="Family Child Care",'STARS Incentive Budget'!$G$5="30 - 59"),"Family Child Care",0) -> 0 | M28: 26 | N28: Family Child Care | O28: STAR 5 | P28: 1 | Q28: =$Q$27 -> 1563 | R28: =$R$27 -> 1563 | S28: =$S$27 -> 1563 | T28: =$T$27 -> 1563 | U28: 6252 | V28: 781.5 | W28: 781.5 | X28: 781.5 | Y28: 781.5 | Z28: 3126
H29: Family Child Care 60+ | I29: =IF(AND('STARS Incentive Budget'!$C$5="Family Child Care",'STARS Incentive Budget'!$G$5="60+"),"Family Child Care",0) -> 0 | M29: 27 | N29: Family Child Care | O29: STAR 5 | P29: 2 | Q29: 1563 | R29: 1563 | S29: 1563 | T29: 1563 | U29: 6252 | V29: 781.5 | W29: 781.5 | X29: 781.5 | Y29: 781.5 | Z29: 3126
H30: Group Child Care | I30: =IF(AND('STARS Incentive Budget'!$C$5="Group Child Care",'STARS Incentive Budget'!$G$5=""),"Group Child Care",0) -> 0 | M30: 28 | N30: Family Child Care | O30: STAR 5 | P30: 3 | Q30: 1563 | R30: 1563 | S30: 1563 | T30: 1563 | U30: 6252 | V30: 781.5 | W30: 781.5 | X30: 781.5 | Y30: 781.5 | Z30: 3126
H31: Group Child Care 16 - 29 | I31: =IF(AND('STARS Incentive Budget'!$C$5="Group Child Care",'STARS Incentive Budget'!$G$5="16 - 29"),"Group Child Care",0) -> 0 | M31: 29 | N31: Family Child Care | O31: STAR 5 | P31: 4 | Q31: 1563 | R31: 1563 | S31: 1563 | T31: 1563 | U31: 6252 | V31: 781.5 | W31: 781.5 | X31: 781.5 | Y31: 781.5 | Z31: 3126
H32: Group Child Care 30 - 59 | I32: =IF(AND('STARS Incentive Budget'!$C$5="Group Child Care",'STARS Incentive Budget'!$G$5="30 - 59"),"Group Child Care",0) -> 0 | M32: 30 | N32: Family Child Care | O32: STAR 5 | P32: 5 | Q32: 1563 | R32: 1563 | S32: 1563 | T32: 1563 | U32: 6252 | V32: 781.5 | W32: 781.5 | X32: 781.5 | Y32: 781.5 | Z32: 3126
H33: Group Child Care 60+ | I33: =IF(AND('STARS Incentive Budget'!$C$5="GRoup Child Care",'STARS Incentive Budget'!$G$5="60+"),"GRoup Child Care",0) -> 0 | M33: 31 | N33: Family Child Care | O33: STAR 5 | P33: 6 | Q33: 1563 | R33: 1563 | S33: 1563 | T33: 1563 | U33: 6252 | V33: 781.5 | W33: 781.5 | X33: 781.5 | Y33: 781.5 | Z33: 3126
A34: QIP Areas of Improvement Control Codes | M34: 32 | N34: Family Child Care | O34: STAR 5 | P34: 7+ | Q34: 1563 | R34: 1563 | S34: 1563 | T34: 1563 | U34: 6252 | V34: 781.5 | W34: 781.5 | X34: 781.5 | Y34: 781.5 | Z34: 3126
A35: Budget Line Item | C35: Time-Frame | H35: Personnel Cost Percentage | M35: 33 | N35: Group Child Care | O35: STAR 2 | P35: 0 | Q35: =$J$46 -> 875 | R35: =$J$46 -> 875 | S35: =$J$46 -> 875 | T35: =$J$46 -> 875 | U35: 3500 | V35: =SUM(Q35*$I$36) -> 175 | W35: 175 | X35: 175 | Y35: 175 | Z35: 700
A36: Operations | C36: monthly | H36: STAR 2 | I36: 0.2 | M36: 34 | N36: Group Child Care | O36: STAR 2 | P36: 1 | Q36: =$Q$35 -> 875 | R36: =$R$35 -> 875 | S36: =$S$35 -> 875 | T36: =$T$35 -> 875 | U36: 3500 | V36: 175 | W36: 175 | X36: 175 | Y36: 175 | Z36: 700
A37: Personnel Expenses | C37: quarterly | H37: STAR 3 | I37: 0.3 | M37: 35 | N37: Group Child Care | O37: STAR 2 | P37: 2 | Q37: =$Q$35 -> 875 | R37: =$R$35 -> 875 | S37: =$S$35 -> 875 | T37: =$T$35 -> 875 | U37: 3500 | V37: 175 | W37: 175 | X37: 175 | Y37: 175 | Z37: 700
C38: yearly | H38: STAR 4 | I38: 0.4 | M38: 36 | N38: Group Child Care | O38: STAR 2 | P38: 3 | Q38: =$Q$35 -> 875 | R38: =$R$35 -> 875 | S38: =$S$35 -> 875 | T38: =$T$35 -> 875 | U38: =SUM(Q38:T38) -> 3500 | V38: 175 | W38: 175 | X38: 175 | Y38: 175 | Z38: 700
C39: 2 x's per year | H39: STAR 5 | I39: 0.5 | M39: 37 | N39: Group Child Care | O39: STAR 2 | P39: 4 | Q39: =$Q$35 -> 875 | R39: =$R$35 -> 875 | S39: =$S$35 -> 875 | T39: =$T$35 -> 875 | U39: =SUM(Q39:T39) -> 3500 | V39: =SUM(Q39*$I$36) -> 175 | W39: =SUM(R39*$I$36) -> 175 | X39: =SUM(S39*$I$36) -> 175 | Y39: =SUM(T39*$I$36) -> 175 | Z39: =SUM(V39:Y39) -> 700
C40: 3 x's per year | M40: 38 | N40: Group Child Care | O40: STAR 2 | P40: 5 | Q40: =ROUND(($Q$38-($Q$38*$I$72)),0) -> 656 | R40: =ROUND(($R$38-($R$38*$I$72)),0) -> 656 | S40: =ROUND(($S$38-($S$38*$I$72)),0) -> 656 | T40: =ROUND(($T$38-($T$38*$I$72)),0) -> 656 | U40: =SUM(Q40:T40) -> 2624 | V40: 131.2 | W40: 131.2 | X40: 131.2 | Y40: 131.2 | Z40: 524.8
H41: STAR Budget Quarterly Incentive | M41: 39 | N41: Group Child Care | O41: STAR 2 | P41: 6 | Q41: =ROUND(($Q$38-($Q$38*$I$73)),0) -> 656 | R41: =ROUND(($R$38-($R$38*$I$73)),0) -> 656 | S41: =ROUND(($S$38-($S$38*$I$73)),0) -> 656 | T41: =ROUND(($T$38-($T$38*$I$73)),0) -> 656 | U41: =SUM(Q41:T41) -> 2624 | V41: 131.2 | W41: 131.2 | X41: 131.2 | Y41: 131.2 | Z41: 524.8
H42: Family | I42: STAR 2 | J42: 625 | M42: 40 | N42: Group Child Care | O42: STAR 2 | P42: 7+ | Q42: =ROUND(($Q$38-($Q$38*$I$74)),0) -> 656 | R42: =ROUND(($R$38-($R$38*$I$74)),0) -> 656 | S42: =ROUND(($S$38-($S$38*$I$74)),0) -> 656 | T42: =ROUND(($T$38-($T$38*$I$74)),0) -> 656 | U42: =SUM(Q42:T42) -> 2624 | V42: 131.2 | W42: 131.2 | X42: 131.2 | Y42: 131.2 | Z42: 524.8
H43: Family | I43: STAR 3 | J43: 938 | M43: 41 | N43: Group Child Care | O43: STAR 3 | P43: 0 | Q43: =$J$47 -> 1375 | R43: =$J$47 -> 1375 | S43: =$J$47 -> 1375 | T43: =$J$47 -> 1375 | U43: =SUM(Q43:T43) -> 5500 | V43: =SUM(Q43*$I$37) -> 412.5 | W43: 412.5 | X43: 412.5 | Y43: 412.5 | Z43: 1650
H44: Family | I44: STAR 4 | J44: 1250 | M44: 42 | N44: Group Child Care | O44: STAR 3 | P44: 1 | Q44: =$Q$43 -> 1375 | R44: =$R$43 -> 1375 | S44: =$S$43 -> 1375 | T44: =$T$43 -> 1375 | U44: 5500 | V44: 412.5 | W44: 412.5 | X44: 412.5 | Y44: 412.5 | Z44: 1650
H45: Family | I45: STAR 5 | J45: 1563 | M45: 43 | N45: Group Child Care | O45: STAR 3 | P45: 2 | Q45: =$Q$43 -> 1375 | R45: =$R$43 -> 1375 | S45: =$S$43 -> 1375 | T45: =$T$43 -> 1375 | U45: 5500 | V45: 412.5 | W45: 412.5 | X45: 412.5 | Y45: 412.5 | Z45: 1650
H46: Group | I46: STAR 2 | J46: 875 | M46: 44 | N46: Group Child Care | O46: STAR 3 | P46: 3 | Q46: =$Q$43 -> 1375 | R46: =$R$43 -> 1375 | S46: =$S$43 -> 1375 | T46: =$T$43 -> 1375 | U46: 5500 | V46: 412.5 | W46: 412.5 | X46: 412.5 | Y46: 412.5 | Z46: 1650
A47: Cost of Care Calculator Control Codes | H47: Group | I47: STAR 3 | J47: 1375 | M47: 45 | N47: Group Child Care | O47: STAR 3 | P47: 4 | Q47: =$Q$43 -> 1375 | R47: 1375 | S47: 1375 | T47: 1375 | U47: 5500 | V47: 412.5 | W47: 412.5 | X47: 412.5 | Y47: 412.5 | Z47: 1650
A48: Star Level | C48: Facility Type | D48: Facility Size | E48: Bonus Percent | H48: Group | I48: STAR 4 | J48: 1875 | M48: 46 | N48: Group Child Care | O48: STAR 3 | P48: 5 | Q48: 1375 | R48: 1375 | S48: 1375 | T48: 1375 | U48: 5500 | V48: 412.5 | W48: 412.5 | X48: 412.5 | Y48: 412.5 | Z48: 1650
A49: Not a STAR Particpant | C49: Family | D49: 0 to 6 | E49: 0 | H49: Group | I49: STAR 5 | J49: 2250 | M49: 47 | N49: Group Child Care | O49: STAR 3 | P49: 6 | Q49: 1375 | R49: 1375 | S49: 1375 | T49: 1375 | U49: 5500 | V49: 412.5 | W49: 412.5 | X49: 412.5 | Y49: 412.5 | Z49: 1650
A50: STAR Participant | C50: Group | D50: 7 to 12 | E50: 0.05 | H50: Center - Small | I50: STAR 2 | J50: 1250 | M50: 48 | N50: Group Child Care | O50: STAR 3 | P50: 7+ | Q50: 1375 | R50: 1375 | S50: 1375 | T50: 1375 | U50: 5500 | V50: 412.5 | W50: 412.5 | X50: 412.5 | Y50: 412.5 | Z50: 1650
A51: STAR 1 | C51: Center | D51: 13 to 29 | E51: 0.1 | H51: Center - Small | I51: STAR 3 | J51: 1875 | M51: 49 | N51: Group Child Care | O51: STAR 4 | P51: 0 | Q51: =$J$48 -> 1875 | R51: =$J$48 -> 1875 | S51: =$J$48 -> 1875 | T51: =$J$48 -> 1875 | U51: 7500 | V51: =SUM(Q51*$I$38) -> 750 | W51: 750 | X51: 750 | Y51: 750 | Z51: 3000
A52: STAR 2 | C52: Early Head Start | D52: 30 to 59 | E52: 0.15 | H52: Center - Small | I52: STAR 4 | J52: 2500 | M52: 50 | N52: Group Child Care | O52: STAR 4 | P52: 1 | Q52: =$Q$51 -> 1875 | R52: =$R$51 -> 1875 | S52: =$S$51 -> 1875 | T52: =$T$51 -> 1875 | U52: 7500 | V52: 750 | W52: 750 | X52: 750 | Y52: 750 | Z52: 3000
A53: STAR 3 | C53: Head Start | D53: 60+ | E53: 0.2 | H53: Center - Small | I53: STAR 5 | J53: 3125 | M53: 51 | N53: Group Child Care | O53: STAR 4 | P53: 2 | Q53: 1875 | R53: 1875 | S53: 1875 | T53: 1875 | U53: 7500 | V53: 750 | W53: 750 | X53: 750 | Y53: 750 | Z53: 3000
A54: STAR 4 | H54: Center - Medium | I54: STAR 2 | J54: 1625 | M54: 52 | N54: Group Child Care | O54: STAR 4 | P54: 3 | Q54: 1875 | R54: 1875 | S54: 1875 | T54: 1875 | U54: 7500 | V54: 750 | W54: 750 | X54: 750 | Y54: 750 | Z54: 3000
A55: STAR 5 | H55: Center - Medium | I55: STAR 3 | J55: 2500 | M55: 53 | N55: Group Child Care | O55: STAR 4 | P55: 4 | Q55: 1875 | R55: 1875 | S55: 1875 | T55: 1875 | U55: 7500 | V55: 750 | W55: 750 | X55: 750 | Y55: 750 | Z55: 3000
H56: Center - Medium | I56: STAR 4 | J56: 3375 | M56: 54 | N56: Group Child Care | O56: STAR 4 | P56: 5 | Q56: 1875 | R56: 1875 | S56: 1875 | T56: 1875 | U56: 7500 | V56: 750 | W56: 750 | X56: 750 | Y56: 750 | Z56: 3000
H57: Center - Medium | I57: STAR 5 | J57: 4250 | M57: 55 | N57: Group Child Care | O57: STAR 4 | P57: 6 | Q57: 1875 | R57: 1875 | S57: 1875 | T57: 1875 | U57: 7500 | V57: 750 | W57: 750 | X57: 750 | Y57: 750 | Z57: 3000
H58: Center - Large | I58: STAR 2 | J58: 2063 | M58: 56 | N58: Group Child Care | O58: STAR 4 | P58: 7+ | Q58: 1875 | R58: 1875 | S58: 1875 | T58: 1875 | U58: 7500 | V58: 750 | W58: 750 | X58: 750 | Y58: 750 | Z58: 3000
H59: Center - Large | I59: STAR 3 | J59: 3125 | M59: 57 | N59: Group Child Care | O59: STAR 5 | P59: 0 | Q59: =$J$49 -> 2250 | R59: =$J$49 -> 2250 | S59: =$J$49 -> 2250 | T59: =$J$49 -> 2250 | U59: 9000 | V59: =SUM(Q59*$I$39) -> 1125 | W59: 1125 | X59: 1125 | Y59: 1125 | Z59: 4500
H60: Center - Large | I60: STAR 4 | J60: 4063 | M60: 58 | N60: Group Child Care | O60: STAR 5 | P60: 1 | Q60: =$Q$59 -> 2250 | R60: =$R$59 -> 2250 | S60: =$S$59 -> 2250 | T60: =$T$59 -> 2250 | U60: 9000 | V60: 1125 | W60: 1125 | X60: 1125 | Y60: 1125 | Z60: 4500
H61: Center - Large | I61: STAR 5 | J61: 5000 | M61: 59 | N61: Group Child Care | O61: STAR 5 | P61: 2 | Q61: 2250 | R61: 2250 | S61: 2250 | T61: 2250 | U61: 9000 | V61: 1125 | W61: 1125 | X61: 1125 | Y61: 1125 | Z61: 4500
M62: 60 | N62: Group Child Care | O62: STAR 5 | P62: 3 | Q62: 2250 | R62: 2250 | S62: 2250 | T62: 2250 | U62: 9000 | V62: 1125 | W62: 1125 | X62: 1125 | Y62: 1125 | Z62: 4500
M63: 61 | N63: Group Child Care | O63: STAR 5 | P63: 4 | Q63: 2250 | R63: 2250 | S63: 2250 | T63: 2250 | U63: 9000 | V63: 1125 | W63: 1125 | X63: 1125 | Y63: 1125 | Z63: 4500
H64: STAR 2 ONLY | M64: 62 | N64: Group Child Care | O64: STAR 5 | P64: 5 | Q64: 2250 | R64: 2250 | S64: 2250 | T64: 2250 | U64: 9000 | V64: 1125 | W64: 1125 | X64: 1125 | Y64: 1125 | Z64: 4500
H65: Number of Years at Level / Incentive Percentage | M65: 63 | N65: Group Child Care | O65: STAR 5 | P65: 6 | Q65: 2250 | R65: 2250 | S65: 2250 | T65: 2250 | U65: 9000 | V65: 1125 | W65: 1125 | X65: 1125 | Y65: 1125 | Z65: 4500
H66: Renewals | I66: Incentive Percentage | M66: 64 | N66: Group Child Care | O66: STAR 5 | P66: 7+ | Q66: 2250 | R66: 2250 | S66: 2250 | T66: 2250 | U66: 9000 | V66: 1125 | W66: 1125 | X66: 1125 | Y66: 1125 | Z66: 4500
H67: 0 | I67: 1 | M67: 65 | N67: Child Care Center - Small | O67: STAR 2 | P67: 0 | Q67: =$J$50 -> 1250 | R67: =$J$50 -> 1250 | S67: =$J$50 -> 1250 | T67: =$J$50 -> 1250 | U67: 5000 | V67: =SUM(Q67*$I$36) -> 250 | W67: 250 | X67: 250 | Y67: 250 | Z67: 1000
H68: 1 | I68: 1 | M68: 66 | N68: Child Care Center - Small | O68: STAR 2 | P68: 1 | Q68: =$Q$67 -> 1250 | R68: =$R$67 -> 1250 | S68: =$S$67 -> 1250 | T68: =$T$67 -> 1250 | U68: 5000 | V68: 250 | W68: 250 | X68: 250 | Y68: 250 | Z68: =SUM(V68:Y68) -> 1000 | AA68: =IF(AND($N$3:$N$162=$I$3)*($O$3:$O$162=$I$4)*($P$3:$P$162=$I$5),$M$3:$M$162,0) -> 
H69: 2 | I69: 1 | M69: 67 | N69: Child Care Center - Small | O69: STAR 2 | P69: 2 | Q69: =$Q$67 -> 1250 | R69: =$R$67 -> 1250 | S69: =$S$67 -> 1250 | T69: =$T$67 -> 1250 | U69: 5000 | V69: 250 | W69: 250 | X69: 250 | Y69: 250 | Z69: 1000
H70: 3 | I70: 1 | M70: 68 | N70: Child Care Center - Small | O70: STAR 2 | P70: 3 | Q70: =$Q$67 -> 1250 | R70: =$R$67 -> 1250 | S70: =$S$67 -> 1250 | T70: =$T$67 -> 1250 | U70: =SUM(Q70:T70) -> 5000 | V70: 250 | W70: 250 | X70: 250 | Y70: 250 | Z70: 1000
H71: 4 | I71: 1 | M71: 69 | N71: Child Care Center - Small | O71: STAR 2 | P71: 4 | Q71: =$Q$67 -> 1250 | R71: =$R$67 -> 1250 | S71: =$S$67 -> 1250 | T71: =$T$67 -> 1250 | U71: =SUM(Q71:T71) -> 5000 | V71: =SUM(Q71*$I$36) -> 250 | W71: =SUM(R71*$I$36) -> 250 | X71: =SUM(S71*$I$36) -> 250 | Y71: =SUM(T71*$I$36) -> 250 | Z71: =SUM(V71:Y71) -> 1000
H72: 5 | I72: 0.25 | M72: 70 | N72: Child Care Center - Small | O72: STAR 2 | P72: 5 | Q72: =ROUND(($Q$70-($Q$70*$I$72)),0) -> 938 | R72: =ROUND(($R$70-($R$70*$I$72)),0) -> 938 | S72: =ROUND(($S$70-($S$70*$I$72)),0) -> 938 | T72: =ROUND(($T$70-($T$70*$I$72)),0) -> 938 | U72: 3752 | V72: 187.6 | W72: 187.6 | X72: 187.6 | Y72: 187.6 | Z72: 750.4
H73: 6 | I73: 0.25 | M73: 71 | N73: Child Care Center - Small | O73: STAR 2 | P73: 6 | Q73: =ROUND(($Q$70-($Q$70*$I$73)),0) -> 938 | R73: =ROUND(($R$70-($R$70*$I$73)),0) -> 938 | S73: =ROUND(($S$70-($S$70*$I$73)),0) -> 938 | T73: =ROUND(($T$70-($T$70*$I$73)),0) -> 938 | U73: 3752 | V73: 187.6 | W73: 187.6 | X73: 187.6 | Y73: 187.6 | Z73: 750.4
H74: 7+ | I74: 0.25 | M74: 72 | N74: Child Care Center - Small | O74: STAR 2 | P74: 7+ | Q74: =ROUND(($Q$70-($Q$70*$I$74)),0) -> 938 | R74: =ROUND(($R$70-($R$70*$I$74)),0) -> 938 | S74: =ROUND(($S$70-($S$70*$I$74)),0) -> 938 | T74: =ROUND(($T$70-($T$70*$I$74)),0) -> 938 | U74: 3752 | V74: 187.6 | W74: 187.6 | X74: 187.6 | Y74: 187.6 | Z74: 750.4
M75: 73 | N75: Child Care Center - Small | O75: STAR 3 | P75: 0 | Q75: =$J$51 -> 1875 | R75: =$J$51 -> 1875 | S75: =$J$51 -> 1875 | T75: =$J$51 -> 1875 | U75: 7500 | V75: =SUM(Q75*$I$37) -> 562.5 | W75: 562.5 | X75: 562.5 | Y75: 562.5 | Z75: 2250
M76: 74 | N76: Child Care Center - Small | O76: STAR 3 | P76: 1 | Q76: =$Q$75 -> 1875 | R76: =$R$75 -> 1875 | S76: =$S$75 -> 1875 | T76: =$T$75 -> 1875 | U76: 7500 | V76: 562.5 | W76: 562.5 | X76: 562.5 | Y76: 562.5 | Z76: 2250
M77: 75 | N77: Child Care Center - Small | O77: STAR 3 | P77: 2 | Q77: =$Q$75 -> 1875 | R77: =$R$75 -> 1875 | S77: =$S$75 -> 1875 | T77: =$T$75 -> 1875 | U77: 7500 | V77: 562.5 | W77: 562.5 | X77: 562.5 | Y77: 562.5 | Z77: 2250
M78: 76 | N78: Child Care Center - Small | O78: STAR 3 | P78: 3 | Q78: =$Q$75 -> 1875 | R78: =$R$75 -> 1875 | S78: =$S$75 -> 1875 | T78: =$T$75 -> 1875 | U78: 7500 | V78: 562.5 | W78: 562.5 | X78: 562.5 | Y78: 562.5 | Z78: 2250
M79: 77 | N79: Child Care Center - Small | O79: STAR 3 | P79: 4 | Q79: =$Q$75 -> 1875 | R79: 1875 | S79: 1875 | T79: 1875 | U79: =SUM(Q79:T79) -> 7500 | V79: 562.5 | W79: 562.5 | X79: 562.5 | Y79: 562.5 | Z79: 2250
M80: 78 | N80: Child Care Center - Small | O80: STAR 3 | P80: 5 | Q80: 1875 | R80: 1875 | S80: 1875 | T80: 1875 | U80: 7500 | V80: 562.5 | W80: 562.5 | X80: 562.5 | Y80: 562.5 | Z80: 2250
M81: 79 | N81: Child Care Center - Small | O81: STAR 3 | P81: 6 | Q81: 1875 | R81: 1875 | S81: 1875 | T81: 1875 | U81: 7500 | V81: 562.5 | W81: 562.5 | X81: 562.5 | Y81: 562.5 | Z81: 2250
M82: 80 | N82: Child Care Center - Small | O82: STAR 3 | P82: 7+ | Q82: 1875 | R82: 1875 | S82: 1875 | T82: 1875 | U82: 7500 | V82: 562.5 | W82: 562.5 | X82: 562.5 | Y82: 562.5 | Z82: 2250
M83: 81 | N83: Child Care Center - Small | O83: STAR 4 | P83: 0 | Q83: =$J$52 -> 2500 | R83: =$J$52 -> 2500 | S83: =$J$52 -> 2500 | T83: =$J$52 -> 2500 | U83: 10000 | V83: =SUM(Q83*$I$38) -> 1000 | W83: 1000 | X83: 1000 | Y83: 1000 | Z83: 4000
M84: 82 | N84: Child Care Center - Small | O84: STAR 4 | P84: 1 | Q84: =$Q$83 -> 2500 | R84: =$R$83 -> 2500 | S84: =$S$83 -> 2500 | T84: =$T$83 -> 2500 | U84: 10000 | V84: 1000 | W84: 1000 | X84: 1000 | Y84: 1000 | Z84: 4000
M85: 83 | N85: Child Care Center - Small | O85: STAR 4 | P85: 2 | Q85: 2500 | R85: 2500 | S85: 2500 | T85: 2500 | U85: 10000 | V85: 1000 | W85: 1000 | X85: 1000 | Y85: 1000 | Z85: 4000
M86: 84 | N86: Child Care Center - Small | O86: STAR 4 | P86: 3 | Q86: 2500 | R86: 2500 | S86: 2500 | T86: 2500 | U86: 10000 | V86: 1000 | W86: 1000 | X86: 1000 | Y86: 1000 | Z86: 4000
M87: 85 | N87: Child Care Center - Small | O87: STAR 4 | P87: 4 | Q87: 2500 | R87: 2500 | S87: 2500 | T87: 2500 | U87: 10000 | V87: 1000 | W87: 1000 | X87: 1000 | Y87: 1000 | Z87: 4000
M88: 86 | N88: Child Care Center - Small | O88: STAR 4 | P88: 5 | Q88: 2500 | R88: 2500 | S88: 2500 | T88: 2500 | U88: 10000 | V88: 1000 | W88: 1000 | X88: 1000 | Y88: 1000 | Z88: 4000
M89: 87 | N89: Child Care Center - Small | O89: STAR 4 | P89: 6 | Q89: 2500 | R89: 2500 | S89: 2500 | T89: 2500 | U89: 10000 | V89: 1000 | W89: 1000 | X89: 1000 | Y89: 1000 | Z89: 4000
M90: 88 | N90: Child Care Center - Small | O90: STAR 4 | P90: 7+ | Q90: 2500 | R90: 2500 | S90: 2500 | T90: 2500 | U90: 10000 | V90: 1000 | W90: 1000 | X90: 1000 | Y90: 1000 | Z90: 4000
M91: 89 | N91: Child Care Center - Small | O91: STAR 5 | P91: 0 | Q91: =$J$53 -> 3125 | R91: =$J$53 -> 3125 | S91: =$J$53 -> 3125 | T91: =$J$53 -> 3125 | U91: =SUM(Q91:T91) -> 12500 | V91: =SUM(Q91*$I$39) -> 1562.5 | W91: 1562.5 | X91: 1562.5 | Y91: 1562.5 | Z91: 6250
M92: 90 | N92: Child Care Center - Small | O92: STAR 5 | P92: 1 | Q92: =$Q$91 -> 3125 | R92: =$R$91 -> 3125 | S92: =$S$91 -> 3125 | T92: =$T$91 -> 3125 | U92: 12500 | V92: 1562.5 | W92: 1562.5 | X92: 1562.5 | Y92: 1562.5 | Z92: 6250
M93: 91 | N93: Child Care Center - Small | O93: STAR 5 | P93: 2 | Q93: 3125 | R93: 3125 | S93: 3125 | T93: 3125 | U93: 12500 | V93: 1562.5 | W93: 1562.5 | X93: 1562.5 | Y93: 1562.5 | Z93: 6250
M94: 92 | N94: Child Care Center - Small | O94: STAR 5 | P94: 3 | Q94: 3125 | R94: 3125 | S94: 3125 | T94: 3125 | U94: 12500 | V94: 1562.5 | W94: 1562.5 | X94: 1562.5 | Y94: 1562.5 | Z94: 6250
M95: 93 | N95: Child Care Center - Small | O95: STAR 5 | P95: 4 | Q95: 3125 | R95: 3125 | S95: 3125 | T95: 3125 | U95: 12500 | V95: 1562.5 | W95: 1562.5 | X95: 1562.5 | Y95: 1562.5 | Z95: 6250
M96: 94 | N96: Child Care Center - Small | O96: STAR 5 | P96: 5 | Q96: 3125 | R96: 3125 | S96: 3125 | T96: 3125 | U96: 12500 | V96: 1562.5 | W96: 1562.5 | X96: 1562.5 | Y96: 1562.5 | Z96: 6250
M97: 95 | N97: Child Care Center - Small | O97: STAR 5 | P97: 6 | Q97: 3125 | R97: 3125 | S97: 3125 | T97: 3125 | U97: 12500 | V97: 1562.5 | W97: 1562.5 | X97: 1562.5 | Y97: 1562.5 | Z97: 6250
M98: 96 | N98: Child Care Center - Small | O98: STAR 5 | P98: 7+ | Q98: 3125 | R98: 3125 | S98: 3125 | T98: 3125 | U98: 12500 | V98: 1562.5 | W98: 1562.5 | X98: 1562.5 | Y98: 1562.5 | Z98: 6250
M99: 97 | N99: Child Care Center - Medium | O99: STAR 2 | P99: 0 | Q99: =$J$54 -> 1625 | R99: =$J$54 -> 1625 | S99: =$J$54 -> 1625 | T99: =$J$54 -> 1625 | U99: =SUM(Q99:T99) -> 6500 | V99: =SUM(Q99*$I$36) -> 325 | W99: 325 | X99: 325 | Y99: 325 | Z99: 1300
M100: 98 | N100: Child Care Center - Medium | O100: STAR 2 | P100: 1 | Q100: =$Q$99 -> 1625 | R100: =$R$99 -> 1625 | S100: =$S$99 -> 1625 | T100: =$T$99 -> 1625 | U100: 6500 | V100: 325 | W100: 325 | X100: 325 | Y100: 325 | Z100: 1300 | AA100: =IF(AND($N$3:$N$162=$I$3)*($O$3:$O$162=$I$4)*($P$3:$P$162=$I$5),$M$3:$M$162,0) -> 
M101: 99 | N101: Child Care Center - Medium | O101: STAR 2 | P101: 2 | Q101: =$Q$99 -> 1625 | R101: =$R$99 -> 1625 | S101: =$S$99 -> 1625 | T101: =$T$99 -> 1625 | U101: 6500 | V101: 325 | W101: 325 | X101: 325 | Y101: 325 | Z101: 1300 | AA101: =IF(AND($N$3:$N$162=$I$3)*($O$3:$O$162=$I$4)*($P$3:$P$162=$I$5),$M$3:$M$162,0) -> 
M102: 100 | N102: Child Care Center - Medium | O102: STAR 2 | P102: 3 | Q102: =$Q$99 -> 1625 | R102: =$R$99 -> 1625 | S102: =$S$99 -> 1625 | T102: =$T$99 -> 1625 | U102: =SUM(Q102:T102) -> 6500 | V102: 325 | W102: 325 | X102: 325 | Y102: 325 | Z102: 1300 | AA102: =IF(AND($N$3:$N$162=$I$3)*($O$3:$O$162=$I$4)*($P$3:$P$162=$I$5),$M$3:$M$162,0) -> 
M103: 101 | N103: Child Care Center - Medium | O103: STAR 2 | P103: 4 | Q103: =$Q$99 -> 1625 | R103: =$R$99 -> 1625 | S103: =$S$99 -> 1625 | T103: =$T$99 -> 1625 | U103: =SUM(Q103:T103) -> 6500 | V103: =SUM(Q103*$I$36) -> 325 | W103: =SUM(R103*$I$36) -> 325 | X103: =SUM(S103*$I$36) -> 325 | Y103: =SUM(T103*$I$36) -> 325 | Z103: =SUM(V103:Y103) -> 1300 | AA103: =IF(AND($N$3:$N$162=$I$3)*($O$3:$O$162=$I$4)*($P$3:$P$162=$I$5),$M$3:$M$162,0) -> 
M104: 102 | N104: Child Care Center - Medium | O104: STAR 2 | P104: 5 | Q104: =ROUND(($Q$102-($Q$102*$I$72)),0) -> 1219 | R104: =ROUND(($R$102-($R$102*$I$72)),0) -> 1219 | S104: =ROUND(($S$102-($S$102*$I$72)),0) -> 1219 | T104: =ROUND(($T$102-($T$102*$I$72)),0) -> 1219 | U104: 4876 | V104: 243.8 | W104: 243.8 | X104: 243.8 | Y104: 243.8 | Z104: 975.2
M105: 103 | N105: Child Care Center - Medium | O105: STAR 2 | P105: 6 | Q105: =ROUND(($Q$102-($Q$102*$I$73)),0) -> 1219 | R105: =ROUND(($R$102-($R$102*$I$73)),0) -> 1219 | S105: =ROUND(($S$102-($S$102*$I$73)),0) -> 1219 | T105: =ROUND(($T$102-($T$102*$I$73)),0) -> 1219 | U105: 4876 | V105: 243.8 | W105: 243.8 | X105: 243.8 | Y105: 243.8 | Z105: 975.2
M106: 104 | N106: Child Care Center - Medium | O106: STAR 2 | P106: 7+ | Q106: =ROUND(($Q$102-($Q$102*$I$74)),0) -> 1219 | R106: =ROUND(($R$102-($R$102*$I$74)),0) -> 1219 | S106: =ROUND(($S$102-($S$102*$I$74)),0) -> 1219 | T106: =ROUND(($T$102-($T$102*$I$74)),0) -> 1219 | U106: 4876 | V106: 243.8 | W106: 243.8 | X106: 243.8 | Y106: 243.8 | Z106: 975.2
M107: 105 | N107: Child Care Center - Medium | O107: STAR 3 | P107: 0 | Q107: =$J$55 -> 2500 | R107: =$J$55 -> 2500 | S107: =$J$55 -> 2500 | T107: =$J$55 -> 2500 | U107: 10000 | V107: =SUM(Q107*$I$37) -> 750 | W107: 750 | X107: 750 | Y107: 750 | Z107: 3000 | AA107: =IF(AND($N$3:$N$162=$I$3)*($O$3:$O$162=$I$4)*($P$3:$P$162=$I$5),$M$3:$M$162,0) -> 
M108: 106 | N108: Child Care Center - Medium | O108: STAR 3 | P108: 1 | Q108: =$Q$107 -> 2500 | R108: =$R$107 -> 2500 | S108: =$S$107 -> 2500 | T108: =$T$107 -> 2500 | U108: =SUM(Q108:T108) -> 10000 | V108: 750 | W108: 750 | X108: 750 | Y108: 750 | Z108: 3000
M109: 107 | N109: Child Care Center - Medium | O109: STAR 3 | P109: 2 | Q109: =$Q$107 -> 2500 | R109: =$R$107 -> 2500 | S109: =$S$107 -> 2500 | T109: =$T$107 -> 2500 | U109: 10000 | V109: 750 | W109: 750 | X109: 750 | Y109: 750 | Z109: 3000
M110: 108 | N110: Child Care Center - Medium | O110: STAR 3 | P110: 3 | Q110: =$Q$107 -> 2500 | R110: =$R$107 -> 2500 | S110: =$S$107 -> 2500 | T110: =$T$107 -> 2500 | U110: 10000 | V110: 750 | W110: 750 | X110: 750 | Y110: 750 | Z110: 3000
M111: 109 | N111: Child Care Center - Medium | O111: STAR 3 | P111: 4 | Q111: =$Q$107 -> 2500 | R111: 2500 | S111: 2500 | T111: 2500 | U111: 10000 | V111: 750 | W111: 750 | X111: 750 | Y111: 750 | Z111: 3000
M112: 110 | N112: Child Care Center - Medium | O112: STAR 3 | P112: 5 | Q112: 2500 | R112: 2500 | S112: 2500 | T112: 2500 | U112: 10000 | V112: 750 | W112: 750 | X112: 750 | Y112: 750 | Z112: 3000
M113: 111 | N113: Child Care Center - Medium | O113: STAR 3 | P113: 6 | Q113: 2500 | R113: 2500 | S113: 2500 | T113: 2500 | U113: 10000 | V113: 750 | W113: 750 | X113: 750 | Y113: 750 | Z113: 3000
M114: 112 | N114: Child Care Center - Medium | O114: STAR 3 | P114: 7+ | Q114: 2500 | R114: 2500 | S114: 2500 | T114: 2500 | U114: 10000 | V114: 750 | W114: 750 | X114: 750 | Y114: 750 | Z114: 3000
M115: 113 | N115: Child Care Center - Medium | O115: STAR 4 | P115: 0 | Q115: =$J$56 -> 3375 | R115: =$J$56 -> 3375 | S115: =$J$56 -> 3375 | T115: =$J$56 -> 3375 | U115: =SUM(Q115:T115) -> 13500 | V115: =SUM(Q115*$I$38) -> 1350 | W115: 1350 | X115: 1350 | Y115: 1350 | Z115: 5400
M116: 114 | N116: Child Care Center - Medium | O116: STAR 4 | P116: 1 | Q116: =$Q$115 -> 3375 | R116: =$R$115 -> 3375 | S116: =$S$115 -> 3375 | T116: =$T$115 -> 3375 | U116: 13500 | V116: 1350 | W116: 1350 | X116: 1350 | Y116: 1350 | Z116: 5400
M117: 115 | N117: Child Care Center - Medium | O117: STAR 4 | P117: 2 | Q117: 3375 | R117: 3375 | S117: 3375 | T117: 3375 | U117: 13500 | V117: 1350 | W117: 1350 | X117: 1350 | Y117: 1350 | Z117: 5400
M118: 116 | N118: Child Care Center - Medium | O118: STAR 4 | P118: 3 | Q118: 3375 | R118: 3375 | S118: 3375 | T118: 3375 | U118: 13500 | V118: 1350 | W118: 1350 | X118: 1350 | Y118: 1350 | Z118: 5400
M119: 117 | N119: Child Care Center - Medium | O119: STAR 4 | P119: 4 | Q119: 3375 | R119: 3375 | S119: 3375 | T119: 3375 | U119: 13500 | V119: 1350 | W119: 1350 | X119: 1350 | Y119: 1350 | Z119: 5400
M120: 118 | N120: Child Care Center - Medium | O120: STAR 4 | P120: 5 | Q120: 3375 | R120: 3375 | S120: 3375 | T120: 3375 | U120: 13500 | V120: 1350 | W120: 1350 | X120: 1350 | Y120: 1350 | Z120: 5400
M121: 119 | N121: Child Care Center - Medium | O121: STAR 4 | P121: 6 | Q121: 3375 | R121: 3375 | S121: 3375 | T121: 3375 | U121: 13500 | V121: 1350 | W121: 1350 | X121: 1350 | Y121: 1350 | Z121: 5400
M122: 120 | N122: Child Care Center - Medium | O122: STAR 4 | P122: 7+ | Q122: 3375 | R122: 3375 | S122: 3375 | T122: 3375 | U122: =SUM(Q122:T122) -> 13500 | V122: 1350 | W122: 1350 | X122: 1350 | Y122: 1350 | Z122: 5400
M123: 121 | N123: Child Care Center - Medium | O123: STAR 5 | P123: 0 | Q123: =$J$57 -> 4250 | R123: =$J$57 -> 4250 | S123: =$J$57 -> 4250 | T123: =$J$57 -> 4250 | U123: =SUM(Q123:T123) -> 17000 | V123: =SUM(Q123*$I$39) -> 2125 | W123: 2125 | X123: 2125 | Y123: 2125 | Z123: 8500
M124: 122 | N124: Child Care Center - Medium | O124: STAR 5 | P124: 1 | Q124: =$Q$123 -> 4250 | R124: =$R$123 -> 4250 | S124: =$S$123 -> 4250 | T124: =$T$123 -> 4250 | U124: 17000 | V124: 2125 | W124: 2125 | X124: 2125 | Y124: 2125 | Z124: 8500
M125: 123 | N125: Child Care Center - Medium | O125: STAR 5 | P125: 2 | Q125: 4250 | R125: 4250 | S125: 4250 | T125: 4250 | U125: 17000 | V125: 2125 | W125: 2125 | X125: 2125 | Y125: 2125 | Z125: 8500
M126: 124 | N126: Child Care Center - Medium | O126: STAR 5 | P126: 3 | Q126: 4250 | R126: 4250 | S126: 4250 | T126: 4250 | U126: 17000 | V126: 2125 | W126: 2125 | X126: 2125 | Y126: 2125 | Z126: 8500
M127: 125 | N127: Child Care Center - Medium | O127: STAR 5 | P127: 4 | Q127: 4250 | R127: 4250 | S127: 4250 | T127: 4250 | U127: 17000 | V127: 2125 | W127: 2125 | X127: 2125 | Y127: 2125 | Z127: 8500
M128: 126 | N128: Child Care Center - Medium | O128: STAR 5 | P128: 5 | Q128: 4250 | R128: 4250 | S128: 4250 | T128: 4250 | U128: 17000 | V128: 2125 | W128: 2125 | X128: 2125 | Y128: 2125 | Z128: 8500
M129: 127 | N129: Child Care Center - Medium | O129: STAR 5 | P129: 6 | Q129: 4250 | R129: 4250 | S129: 4250 | T129: 4250 | U129: 17000 | V129: 2125 | W129: 2125 | X129: 2125 | Y129: 2125 | Z129: 8500
M130: 128 | N130: Child Care Center - Medium | O130: STAR 5 | P130: 7+ | Q130: 4250 | R130: 4250 | S130: 4250 | T130: 4250 | U130: 17000 | V130: 2125 | W130: 2125 | X130: 2125 | Y130: 2125 | Z130: 8500
M131: 129 | N131: Child Care Center - Large | O131: STAR 2 | P131: 0 | Q131: =$J$58 -> 2063 | R131: =$J$58 -> 2063 | S131: =$J$58 -> 2063 | T131: =$J$58 -> 2063 | U131: =SUM(Q131:T131) -> 8252 | V131: =SUM(Q131*$I$36) -> 412.6 | W131: 412.6 | X131: 412.6 | Y131: 412.6 | Z131: 1650.4
M132: 130 | N132: Child Care Center - Large | O132: STAR 2 | P132: 1 | Q132: =$Q$131 -> 2063 | R132: =$R$131 -> 2063 | S132: =$S$131 -> 2063 | T132: =$T$131 -> 2063 | U132: 8252 | V132: 412.6 | W132: 412.6 | X132: 412.6 | Y132: 412.6 | Z132: =SUM(V132:Y132) -> 1650.4 | AA132: =IF(AND($N$3:$N$162=$I$3)*($O$3:$O$162=$I$4)*($P$3:$P$162=$I$5),$M$3:$M$162,0) -> 
M133: 131 | N133: Child Care Center - Large | O133: STAR 2 | P133: 2 | Q133: =$Q$131 -> 2063 | R133: =$R$131 -> 2063 | S133: =$S$131 -> 2063 | T133: =$T$131 -> 2063 | U133: 8252 | V133: 412.6 | W133: 412.6 | X133: 412.6 | Y133: 412.6 | Z133: 1650.4
M134: 132 | N134: Child Care Center - Large | O134: STAR 2 | P134: 3 | Q134: =$Q$131 -> 2063 | R134: =$R$131 -> 2063 | S134: =$S$131 -> 2063 | T134: =$T$131 -> 2063 | U134: =SUM(Q134:T134) -> 8252 | V134: 412.6 | W134: 412.6 | X134: 412.6 | Y134: 412.6 | Z134: 1650.4
M135: 133 | N135: Child Care Center - Large | O135: STAR 2 | P135: 4 | Q135: =$Q$131 -> 2063 | R135: =$R$131 -> 2063 | S135: =$S$131 -> 2063 | T135: =$T$131 -> 2063 | U135: =SUM(Q135:T135) -> 8252 | V135: =SUM(Q135*$I$36) -> 412.6 | W135: =SUM(R135*$I$36) -> 412.6 | X135: =SUM(S135*$I$36) -> 412.6 | Y135: =SUM(T135*$I$36) -> 412.6 | Z135: =SUM(V135:Y135) -> 1650.4
M136: 134 | N136: Child Care Center - Large | O136: STAR 2 | P136: 5 | Q136: =ROUND(($Q$134-($Q$134*$I$72)),0) -> 1547 | R136: =ROUND(($R$134-($R$134*$I$72)),0) -> 1547 | S136: =ROUND(($S$134-($S$134*$I$72)),0) -> 1547 | T136: =ROUND(($T$134-($T$134*$I$72)),0) -> 1547 | U136: 6188 | V136: 309.4 | W136: 309.4 | X136: 309.4 | Y136: 309.4 | Z136: 1237.6
M137: 135 | N137: Child Care Center - Large | O137: STAR 2 | P137: 6 | Q137: =ROUND(($Q$134-($Q$134*$I$73)),0) -> 1547 | R137: =ROUND(($R$134-($R$134*$I$73)),0) -> 1547 | S137: =ROUND(($S$134-($S$134*$I$73)),0) -> 1547 | T137: =ROUND(($T$134-($T$134*$I$73)),0) -> 1547 | U137: 6188 | V137: 309.4 | W137: 309.4 | X137: 309.4 | Y137: 309.4 | Z137: 1237.6
M138: 136 | N138: Child Care Center - Large | O138: STAR 2 | P138: 7+ | Q138: =ROUND(($Q$134-($Q$134*$I$74)),0) -> 1547 | R138: =ROUND(($R$134-($R$134*$I$74)),0) -> 1547 | S138: =ROUND(($S$134-($S$134*$I$74)),0) -> 1547 | T138: =ROUND(($T$134-($T$134*$I$74)),0) -> 1547 | U138: 6188 | V138: 309.4 | W138: 309.4 | X138: 309.4 | Y138: 309.4 | Z138: 1237.6
M139: 137 | N139: Child Care Center - Large | O139: STAR 3 | P139: 0 | Q139: =$J$59 -> 3125 | R139: =$J$59 -> 3125 | S139: =$J$59 -> 3125 | T139: =$J$59 -> 3125 | U139: 12500 | V139: =SUM(Q139*$I$37) -> 937.5 | W139: 937.5 | X139: 937.5 | Y139: 937.5 | Z139: 3750
M140: 138 | N140: Child Care Center - Large | O140: STAR 3 | P140: 1 | Q140: =$Q$139 -> 3125 | R140: =$R$139 -> 3125 | S140: =$S$139 -> 3125 | T140: =$T$139 -> 3125 | U140: =SUM(Q140:T140) -> 12500 | V140: 937.5 | W140: 937.5 | X140: 937.5 | Y140: 937.5 | Z140: 3750
M141: 139 | N141: Child Care Center - Large | O141: STAR 3 | P141: 2 | Q141: =$Q$139 -> 3125 | R141: =$R$139 -> 3125 | S141: =$S$139 -> 3125 | T141: =$T$139 -> 3125 | U141: 12500 | V141: 937.5 | W141: 937.5 | X141: 937.5 | Y141: 937.5 | Z141: 3750
M142: 140 | N142: Child Care Center - Large | O142: STAR 3 | P142: 3 | Q142: =$Q$139 -> 3125 | R142: =$R$139 -> 3125 | S142: =$S$139 -> 3125 | T142: =$T$139 -> 3125 | U142: 12500 | V142: 937.5 | W142: 937.5 | X142: 937.5 | Y142: 937.5 | Z142: 3750
M143: 141 | N143: Child Care Center - Large | O143: STAR 3 | P143: 4 | Q143: 3125 | R143: 3125 | S143: 3125 | T143: 3125 | U143: 12500 | V143: 937.5 | W143: 937.5 | X143: 937.5 | Y143: 937.5 | Z143: 3750
M144: 142 | N144: Child Care Center - Large | O144: STAR 3 | P144: 5 | Q144: 3125 | R144: 3125 | S144: 3125 | T144: 3125 | U144: 12500 | V144: 937.5 | W144: 937.5 | X144: 937.5 | Y144: 937.5 | Z144: 3750
M145: 143 | N145: Child Care Center - Large | O145: STAR 3 | P145: 6 | Q145: 3125 | R145: 3125 | S145: 3125 | T145: 3125 | U145: 12500 | V145: 937.5 | W145: 937.5 | X145: 937.5 | Y145: 937.5 | Z145: 3750
M146: 144 | N146: Child Care Center - Large | O146: STAR 3 | P146: 7+ | Q146: 3125 | R146: 3125 | S146: 3125 | T146: 3125 | U146: 12500 | V146: 937.5 | W146: 937.5 | X146: 937.5 | Y146: 937.5 | Z146: 3750
M147: 145 | N147: Child Care Center - Large | O147: STAR 4 | P147: 0 | Q147: =$J$60 -> 4063 | R147: =$J$60 -> 4063 | S147: =$J$60 -> 4063 | T147: =$J$60 -> 4063 | U147: =SUM(Q147:T147) -> 16252 | V147: =SUM(Q147*$I$38) -> 1625.2 | W147: 1625.2 | X147: 1625.2 | Y147: 1625.2 | Z147: 6500.8
M148: 146 | N148: Child Care Center - Large | O148: STAR 4 | P148: 1 | Q148: =$Q$147 -> 4063 | R148: =$R$147 -> 4063 | S148: =$S$147 -> 4063 | T148: =$T$147 -> 4063 | U148: 16252 | V148: 1625.2 | W148: 1625.2 | X148: 1625.2 | Y148: 1625.2 | Z148: 6500.8
M149: 147 | N149: Child Care Center - Large | O149: STAR 4 | P149: 2 | Q149: 4063 | R149: 4063 | S149: 4063 | T149: 4063 | U149: 16252 | V149: 1625.2 | W149: 1625.2 | X149: 1625.2 | Y149: 1625.2 | Z149: 6500.8
M150: 148 | N150: Child Care Center - Large | O150: STAR 4 | P150: 3 | Q150: 4063 | R150: 4063 | S150: 4063 | T150: 4063 | U150: 16252 | V150: 1625.2 | W150: 1625.2 | X150: 1625.2 | Y150: 1625.2 | Z150: 6500.8
M151: 149 | N151: Child Care Center - Large | O151: STAR 4 | P151: 4 | Q151: 4063 | R151: 4063 | S151: 4063 | T151: 4063 | U151: 16252 | V151: 1625.2 | W151: 1625.2 | X151: 1625.2 | Y151: 1625.2 | Z151: 6500.8
M152: 150 | N152: Child Care Center - Large | O152: STAR 4 | P152: 5 | Q152: 4063 | R152: 4063 | S152: 4063 | T152: 4063 | U152: 16252 | V152: 1625.2 | W152: 1625.2 | X152: 1625.2 | Y152: 1625.2 | Z152: 6500.8
M153: 151 | N153: Child Care Center - Large | O153: STAR 4 | P153: 6 | Q153: 4063 | R153: 4063 | S153: 4063 | T153: 4063 | U153: 16252 | V153: 1625.2 | W153: 1625.2 | X153: 1625.2 | Y153: 1625.2 | Z153: 6500.8
M154: 152 | N154: Child Care Center - Large | O154: STAR 4 | P154: 7+ | Q154: 4063 | R154: 4063 | S154: 4063 | T154: 4063 | U154: 16252 | V154: 1625.2 | W154: 1625.2 | X154: 1625.2 | Y154: 1625.2 | Z154: 6500.8
M155: 153 | N155: Child Care Center - Large | O155: STAR 5 | P155: 0 | Q155: =$J$61 -> 5000 | R155: =$J$61 -> 5000 | S155: =$J$61 -> 5000 | T155: =$J$61 -> 5000 | U155: =SUM(Q155:T155) -> 20000 | V155: =SUM(Q155*$I$39) -> 2500 | W155: 2500 | X155: 2500 | Y155: 2500 | Z155: 10000
M156: 154 | N156: Child Care Center - Large | O156: STAR 5 | P156: 1 | Q156: =$Q$155 -> 5000 | R156: =$R$155 -> 5000 | S156: =$S$155 -> 5000 | T156: =$T$155 -> 5000 | U156: 20000 | V156: 2500 | W156: 2500 | X156: 2500 | Y156: 2500 | Z156: 10000
M157: 155 | N157: Child Care Center - Large | O157: STAR 5 | P157: 2 | Q157: 5000 | R157: 5000 | S157: 5000 | T157: 5000 | U157: 20000 | V157: 2500 | W157: 2500 | X157: 2500 | Y157: 2500 | Z157: 10000
M158: 156 | N158: Child Care Center - Large | O158: STAR 5 | P158: 3 | Q158: 5000 | R158: 5000 | S158: 5000 | T158: 5000 | U158: 20000 | V158: 2500 | W158: 2500 | X158: 2500 | Y158: 2500 | Z158: 10000
M159: 157 | N159: Child Care Center - Large | O159: STAR 5 | P159: 4 | Q159: 5000 | R159: 5000 | S159: 5000 | T159: 5000 | U159: 20000 | V159: 2500 | W159: 2500 | X159: 2500 | Y159: 2500 | Z159: 10000
M160: 158 | N160: Child Care Center - Large | O160: STAR 5 | P160: 5 | Q160: 5000 | R160: 5000 | S160: 5000 | T160: 5000 | U160: 20000 | V160: 2500 | W160: 2500 | X160: 2500 | Y160: 2500 | Z160: 10000
M161: 159 | N161: Child Care Center - Large | O161: STAR 5 | P161: 6 | Q161: 5000 | R161: 5000 | S161: 5000 | T161: 5000 | U161: 20000 | V161: 2500 | W161: 2500 | X161: 2500 | Y161: 2500 | Z161: 10000
M162: 160 | N162: Child Care Center - Large | O162: STAR 5 | P162: 7+ | Q162: 5000 | R162: 5000 | S162: 5000 | T162: 5000 | U162: 20000 | V162: 2500 | W162: 2500 | X162: 2500 | Y162: 2500 | Z162: 10000
